bitfinex/quotes_ETHUSD_20240530
["timestamp","ask_amount","ask_price","bid_price","bid_amount"]
[1717101668293,0.266652,3750.1,3748.8,2.934217]
[1717101668487,2.66667,3750.0,3748.8,2.934217]
[1717101668988,0.03367473,3749.9,3748.8,2.934217]
[1717101669192,0.20463269,3749.9,3748.8,2.934217]
[1717101670090,0.17095796,3749.9,3748.8,2.934217]
[1717101670292,0.17095796,3749.9,3748.9,0.2934217]
[1717101671401,0.03362543,3749.8,3748.9,0.2934217]
[1717101671756,0.17095796,3749.9,3748.9,0.2934217]
[1717101672170,0.03373336,3749.8,3749.0,3.98946922]
[1717101672395,0.17095796,3749.9,3749.1,0.45496379]
[1717101672582,0.03365708,3749.7,3749.4,2.66707]
[1717101672789,0.03296842,3749.8,3749.6,2.66695]
[1717101673087,0.17095796,3749.9,3749.6,2.66695]
[1717101673483,0.03296842,3749.8,3749.6,2.66695]
[1717101673685,0.03296842,3749.8,3749.6,3.148145]
[1717101673996,0.17095796,3749.9,3749.6,3.148145]
[1717101674503,0.03317294,3749.8,3749.6,3.148145]
[1717101674888,0.17095796,3749.9,3749.6,3.148145]
[1717101675402,0.03317294,3749.8,3749.6,3.148145]
[1717101675608,0.17095796,3749.9,3749.6,3.148145]
[1717101675818,0.17095796,3749.9,3749.6,2.66695]
[1717101675975,0.03328087,3749.8,3749.2,5.02398]
[1717101676168,0.03328087,3749.8,3749.3,1.32213922]
[1717101676374,0.17095796,3749.9,3749.3,1.32213922]
[1717101676598,0.17095796,3749.9,3749.4,0.63461192]
[1717101676793,0.03328087,3749.8,3749.2,5.02398]
[1717101676997,2.66626,3750.6,3749.4,2.66705]
[1717101677197,2.66626,3750.6,3749.7,2.66683]
[1717101679207,2.66647,3750.3,3749.3,9.96714]
[1717101680270,2.6667,3750.0,3749.3,7.3]
[1717101681102,0.03231678,3749.9,3749.3,7.3]
[1717101681693,2.6668,3749.8,3749.3,7.3]
[1717101681892,2.6668,3749.8,3748.9,2.9608317]
[1717101682110,0.03221819,3749.7,3748.9,2.9608317]
[1717101682321,2.6668,3749.8,3748.9,2.9608317]
[1717101685517,2.66618,3750.7,3749.7,2.66687]
[1717101685712,3.30836221,3751.0,3749.7,2.66687]
[1717101685713,2.66634,3750.5,3749.7,2.66687]
[1717101686088,0.0314197,3750.4,3749.7,2.66687]
[1717101686513,2.66634,3750.5,3749.7,2.66687]
[1717101686888,0.0314197,3750.4,3749.7,2.66687]
[1717101687387,2.66646,3750.3,3749.5,7.3]
[1717101687695,0.03030114,3750.2,3749.5,7.3]
[1717101688098,2.66646,3750.3,3749.5,7.3]
[1717101688483,0.03030114,3750.2,3749.5,7.3]
[1717101688694,2.66646,3750.3,3749.5,7.3]
[1717101689095,0.03030114,3750.2,3749.5,7.3]
[1717101689475,2.933106,3750.3,3749.5,7.3]
[1717101689586,0.03025185,3750.1,3749.5,7.3]
[1717101689786,2.66646,3750.3,3749.5,7.3]
[1717101690025,0.03030114,3750.2,3749.5,7.3]
[1717101690211,2.66646,3750.3,3749.5,7.3]
[1717101690386,0.03025185,3750.1,3749.5,7.3]
[1717101690736,2.66646,3750.3,3749.5,7.3]
[1717101691230,0.03030114,3750.2,3749.5,7.3]
[1717101691434,2.66646,3750.3,3749.5,7.3]
[1717101691617,2.66646,3750.3,3749.3,2.6671]
[1717101691834,0.03030114,3750.2,3749.3,2.6671]
[1717101692116,2.66646,3750.3,3749.3,5.31270763]
[1717101692485,0.03030114,3750.2,3749.3,5.31270763]
[1717101692686,2.66646,3750.3,3749.3,5.31270763]
[1717101692912,0.03025185,3750.1,3749.3,5.31270763]
[1717101693128,0.03030114,3750.2,3749.3,5.31270763]
[1717101693429,2.66646,3750.3,3749.3,5.31270763]
[1717101693628,0.03025185,3750.1,3749.3,5.31270763]
[1717101693803,2.66646,3750.3,3749.3,5.31270763]
[1717101694004,0.03020256,3750.0,3749.3,5.31270763]
[1717101694201,2.66646,3750.3,3749.3,5.31270763]
[1717101694402,0.03015327,3749.9,3749.3,5.31270763]
[1717101694734,2.66646,3750.3,3749.4,0.52258284]
[1717101695027,0.03030114,3750.2,3749.3,2.6671]
[1717101695218,2.66646,3750.3,3749.3,2.6671]
[1717101695421,2.69691185,3750.1,3749.3,2.6671]
[1717101695646,2.66666,3750.1,3749.3,2.6671]
[1717101695930,0.03020256,3750.0,3749.3,2.6671]
[1717101696287,0.03020256,3750.0,3749.3,3.76908579]
[1717101698891,2.66675,3749.9,3749.1,7.3]
[1717101701861,2.66675,3749.9,3749.2,2.6672]
[1717101702343,2.66708,3749.5,3749.1,7.3]
[1717101702706,0.03014785,3749.4,3749.1,7.3]
[1717101704195,2.66676,3749.9,3749.1,8.296742]
[1717101704442,0.03018622,3749.8,3749.1,8.296742]
[1717101706142,0.03018622,3749.8,3749.1,0.996742]
[1717101706347,0.03018622,3749.8,3748.9,2.66742]
[1717101706643,2.66676,3749.9,3748.9,2.66742]
[1717101708544,2.66692,3749.7,3748.9,2.66742]
[1717101709351,2.66692,3749.7,3748.7,7.3]
[1717101709352,1.9372697,3749.6,3748.7,7.3]
[1717101709517,1.9372697,3749.6,3748.7,9.517766]
[1717101709719,2.66706,3749.5,3748.7,9.517766]
[1717101709919,1.93732634,3749.4,3748.7,9.517766]
[1717101710319,2.66717,3749.3,3748.7,9.517766]
[1717101712018,2.66717,3749.3,3748.7,2.217766]
[1717101712215,0.02958232,3749.2,3748.5,2.66766]
[1717101712622,2.66717,3749.3,3748.5,2.66766]
[1717101713299,0.02958232,3749.2,3748.5,2.66766]
[1717101713498,2.66717,3749.3,3748.5,2.66766]
[1717101713746,0.02953301,3749.1,3748.5,2.66766]
[1717101713949,0.02958232,3749.2,3748.6,1.239806]
[1717101714147,2.66717,3749.3,3748.6,1.239806]
[1717101714591,0.02958232,3749.2,3748.6,1.239806]
[1717101715034,2.66717,3749.3,3748.6,1.239806]
[1717101715346,0.02961399,3749.1,3748.6,1.239806]
[1717101715551,2.6673,3749.1,3748.6,1.239806]
[1717101718151,2.6673,3749.1,3748.3,9.7304]
[1717101718309,2.6673,3749.1,3748.3,11.05253922]
[1717101719242,2.6673,3749.1,3748.3,7.3]
[1717101720271,2.66753,3748.8,3748.3,7.3]
[1717101723682,2.66753,3748.8,3747.9,12.21]
[1717101723881,2.66753,3748.8,3747.9,14.661907]
[1717101724497,2.66753,3748.8,3747.9,2.451907]
[1717101726414,2.66768,3748.6,3747.8,9.96817]
[1717101728508,2.66768,3748.6,3747.9,0.893]
[1717101728670,0.02782199,3748.5,3747.9,0.893]
[1717101729467,0.02782199,3748.5,3747.8,9.96817]
[1717101729824,0.02782199,3748.5,3747.8,12.092077]
[1717101729965,2.66768,3748.6,3747.8,12.092077]
[1717101730330,0.893,3748.1,3747.8,11.199077]
[1717101730470,2.66768,3748.6,3747.8,2.66817]
[1717101730668,0.893,3747.9,3747.8,2.66817]
[1717101731268,2.47742094,3747.9,3747.8,2.66817]
[1717101731765,1.46971703,3747.9,3747.5,2.66844]
[1717101731967,3.05413797,3747.9,3747.5,5.119694]
[1717101732204,2.47742094,3747.9,3747.5,5.119694]
[1717101732413,1.58442094,3747.9,3747.5,5.119694]
[1717101732568,0.893,3747.9,3747.5,5.119694]
[1717101732764,2.47742094,3747.9,3747.6,1.7329694]
[1717101732971,3.05414162,3747.9,3747.6,1.7329694]
[1717101733274,2.47742094,3747.9,3747.6,1.7329694]
[1717101735009,1.58442094,3747.9,3747.6,1.7329694]
[1717101735712,0.02751004,3747.8,3747.5,5.119694]
[1717101736991,1.5855149,3747.9,3747.5,5.119694]
[1717101737320,3.05523552,3747.9,3747.5,5.119694]
[1717101737491,2.4785149,3747.9,3747.5,5.119694]
[1717101737691,2.16223552,3747.8,3747.5,5.119694]
[1717101737892,1.5855149,3747.8,3747.6,0.5119694]
[1717101738103,1.5855149,3747.8,3747.5,2.66844]
[1717101738308,0.92046069,3747.7,3747.5,2.66844]
[1717101738691,0.57678117,3747.6,3747.2,12.30274]
[1717101738896,0.92046069,3747.7,3747.2,12.30274]
[1717101738897,2.16104215,3747.5,3747.2,12.30274]
[1717101739211,2.16104215,3747.4,3747.3,1.230274]
[1717101739449,0.57678117,3747.4,3747.3,1.230274]
[1717101739581,1.58426098,3747.5,3747.3,1.230274]
[1717101739774,1.58426098,3747.4,3747.3,1.230274]
[1717101740218,1.58426098,3747.4,3747.2,9.96864]
[1717101740515,1.58426098,3747.5,3747.2,9.96864]
[1717101740716,1.61136881,3747.4,3747.2,9.96864]
[1717101741021,1.58426098,3747.4,3747.2,9.96864]
[1717101741393,1.58426098,3747.5,3747.2,2.66864]
[1717101741596,1.58426098,3747.4,3747.2,2.935504]
[1717101741793,1.61136881,3747.4,3747.2,2.935504]
[1717101742009,1.58426098,3747.4,3747.2,2.935504]
[1717101742625,0.57678117,3747.6,3747.2,2.935504]
[1717101742626,2.47726098,3747.5,3747.2,2.935504]
[1717101742983,2.1877977,3747.4,3747.2,2.935504]
[1717101743209,1.61101653,3747.4,3747.2,2.935504]
[1717101743430,0.02675555,3747.4,3747.2,2.935504]
[1717101744278,0.02675555,3747.4,3746.9,2.66886]
[1717101747634,0.893,3747.3,3746.9,2.66886]
[1717101747834,0.02675555,3747.4,3746.9,2.66886]
[1717101747991,0.02591048,3747.2,3746.9,2.66886]
[1717101748186,0.02583078,3747.3,3746.9,2.66886]
[1717101748429,0.02573205,3747.1,3746.9,3.665746]
[1717101748729,0.02568268,3747.0,3746.9,3.665746]
[1717101748932,0.893,3747.5,3746.9,3.665746]
[1717101749117,0.02588014,3747.4,3746.9,3.665746]
[1717101749315,0.893,3747.5,3746.9,3.665746]
[1717101749640,0.893,3747.3,3746.9,2.66886]
[1717101750020,0.02487283,3747.2,3746.9,2.66886]
[1717101750406,0.893,3747.3,3746.9,2.66886]
[1717101750615,0.02482346,3747.1,3746.9,2.66886]
[1717101750935,0.02477409,3747.0,3746.9,2.66886]
[1717101751093,0.893,3747.3,3746.9,3.665746]
[1717101751288,0.02475124,3747.2,3746.9,3.665746]
[1717101751494,2.16143096,3747.5,3746.9,3.665746]
[1717101751720,0.02487191,3747.4,3746.9,3.665746]
[1717101755355,1.60948457,3747.4,3746.9,3.665746]
[1717101755648,0.02487191,3747.4,3746.9,3.665746]
[1717101755818,0.893,3747.5,3746.9,3.665746]
[1717101756251,2.16226866,3747.4,3746.9,3.665746]
[1717101756412,1.58542204,3747.4,3746.9,3.665746]
[1717101758161,2.47842204,3747.4,3746.9,3.665746]
[1717101758575,0.02467814,3747.3,3746.9,3.665746]
[1717101759067,2.47842204,3747.4,3746.9,3.665746]
[1717101759365,0.893,3747.2,3746.9,2.66886]
[1717101759703,0.893,3747.2,3746.6,7.3]
[1717101759704,0.893,3747.0,3746.6,7.3]
[1717101759987,0.02450053,3746.9,3746.6,7.3]
[1717101760493,1.60992257,3746.9,3746.6,7.3]
[1717101760766,0.893,3746.8,3746.6,7.3]
[1717101761280,0.02431822,3746.7,3746.2,2.4614]
[1717101761973,0.893,3746.8,3746.2,2.4614]
[1717101762495,0.02422127,3746.7,3746.2,2.4614]
[1717101763057,0.893,3746.6,3746.2,2.4614]
[1717101763256,0.02422127,3746.7,3746.2,2.4614]
[1717101763465,0.893,3746.8,3746.2,2.4614]
[1717101763644,0.02422127,3746.7,3746.2,2.4614]
[1717101763844,0.02422127,3746.7,3746.1,2.66941]
[1717101766534,0.893,3746.6,3746.1,2.66941]
[1717101766736,0.02403083,3746.5,3746.1,2.66941]
[1717101767856,0.02403083,3746.5,3745.7,2.66966]
[1717101768056,0.02403083,3746.5,3745.8,1.235286]
[1717101768228,0.893,3746.6,3745.8,1.235286]
[1717101769956,0.0240206,3746.5,3745.8,1.235286]
[1717101770693,0.0240206,3746.5,3745.7,2.66966]
[1717101773065,0.893,3746.4,3745.7,2.66966]
[1717101773265,0.02386332,3746.3,3745.7,2.66966]
[1717101776300,0.02386332,3746.3,3746.2,2.66937]
[1717101776486,2.83021569,3747.8,3746.2,5.08987]
[1717101776487,1.591489,3747.2,3746.2,5.08987]
[1717101776799,0.0240698,3747.1,3746.4,3.56216]
[1717101777113,2.66859,3747.3,3746.4,3.56216]
[1717101777274,0.02406514,3747.2,3746.4,3.56216]
[1717101777478,0.02406514,3747.2,3746.5,0.598266]
[1717101778265,1.591489,3747.5,3746.8,3.56187]
[1717101778591,0.02412105,3747.4,3746.8,2.66887]
[1717101778905,0.57687187,3747.6,3746.8,2.66887]
[1717101779100,0.02417041,3747.5,3746.8,2.66887]
[1717101780005,0.02417041,3747.5,3747.3,2.66858]
[1717101780416,0.17478261,3747.7,3747.3,2.66858]
[1717101780604,0.02533148,3747.4,3747.3,2.66858]
[1717101780801,0.17478261,3747.7,3747.3,2.66858]
[1717101781189,0.02505498,3747.6,3747.3,2.66858]
[1717101782102,0.17478261,3747.7,3747.3,2.66858]
[1717101782303,0.20172642,3747.7,3747.3,2.66858]
[1717101783320,0.20172642,3747.7,3747.3,3.024738]
[1717101783714,0.17478261,3747.7,3747.3,3.024738]
[1717101783916,0.02497756,3747.6,3747.5,2.66844]
[1717101784121,0.17478261,3747.7,3747.5,2.66844]
[1717101784301,0.02503457,3747.6,3747.5,2.66844]
[1717101786435,0.02503457,3747.6,3747.5,3.024584]
[1717101786931,0.17478261,3747.7,3747.5,3.024584]
[1717101787135,0.17478261,3747.7,3747.6,0.05336118]
[1717101788338,0.17478261,3747.7,3747.5,3.024584]
[1717101789498,1.59099949,3748.7,3747.6,4.70713922]
[1717101789704,0.02540091,3748.6,3748.0,0.893]
[1717101789899,1.59099949,3748.9,3748.0,0.893]
[1717101790105,1.46975846,3749.0,3748.0,0.893]
[1717101790106,0.02385562,3748.8,3748.0,0.893]
[1717101790403,0.893,3749.0,3748.0,0.893]
[1717101791031,0.893,3749.0,3748.2,2.66788]
[1717101792460,0.893,3748.8,3748.2,2.66788]
[1717101793228,3.32633495,3749.1,3748.3,0.893]
[1717101793636,0.02700909,3749.0,3748.3,0.893]
[1717101797230,0.02700909,3749.0,3748.5,0.893]
[1717101800285,0.02700909,3749.0,3748.2,2.66788]
[1717101800450,0.59549349,3749.0,3748.4,0.893]
[1717101803186,2.66735,3749.1,3748.6,0.893]
[1717101804383,2.6671,3749.4,3748.9,0.893]
[1717101804959,2.66689,3749.7,3748.9,0.893]
[1717101805173,0.601679,3749.6,3748.7,3.56058]
[1717101806363,1.17827174,3749.6,3748.7,3.56058]
[1717101806576,1.17827174,3749.6,3748.9,0.893]
[1717101807199,0.601679,3749.6,3748.9,0.893]
[1717101807761,2.84676683,3750.0,3749.0,2.66731]
[1717101807966,2.93357371,3749.9,3749.1,0.893]
[1717101808169,0.57657371,3749.8,3749.1,0.893]
[1717101808721,0.57657371,3749.8,3749.0,2.66731]
[1717101808866,0.02695005,3749.7,3749.0,2.66731]
[1717101813677,1.58997911,3749.7,3749.0,2.66731]
[1717101813895,2.66695,3749.6,3748.7,2.66758]
[1717101814107,2.66695,3749.6,3748.7,3.56058]
[1717101814418,2.69385734,3749.6,3748.7,3.56058]
[1717101815896,0.57658314,3749.5,3748.7,2.66758]
[1717101816070,5.45016695,3749.4,3748.7,2.66758]
[1717101816271,0.57660288,3749.3,3748.7,2.66758]
[1717101817001,0.57660288,3749.3,3748.6,7.3]
[1717101817686,0.57660288,3749.3,3748.5,0.893]
[1717101818015,3.56026,3749.2,3748.4,2.66779]
[1717101818167,0.57660288,3749.1,3748.4,2.66779]
[1717101819196,2.66741,3749.0,3748.2,7.3]
[1717101819403,2.87500288,3748.9,3748.2,7.3]
[1717101819710,0.57667237,3748.8,3748.2,7.3]
[1717101821575,2.66754,3748.8,3748.2,7.3]
[1717101823271,2.66754,3748.8,3748.1,0.893]
[1717101823901,2.66754,3748.8,3748.0,2.66805]
[1717101824082,2.66754,3748.8,3747.8,7.3]
[1717101824307,3.00220899,3748.9,3747.9,0.893]
[1717101824308,2.66766,3748.6,3747.9,0.893]
[1717101825876,2.66766,3748.6,3747.8,7.3]
[1717101828686,3.56066,3748.6,3747.8,7.3]
[1717101835985,2.66782,3748.4,3747.8,7.3]
[1717101836299,2.66782,3748.4,3747.6,2.66831]
[1717101837604,3.23790949,3748.4,3747.6,2.66831]
[1717101845568,0.893,3748.3,3747.6,2.66831]
[1717101845967,2.66795,3748.2,3747.6,2.66831]
[1717101846153,2.66795,3748.2,3747.4,7.3]
[1717101846894,3.56095,3748.2,3747.4,7.3]
[1717101847022,2.2964,3748.1,3747.4,7.3]
[1717101847229,2.66809,3748.0,3747.4,7.3]
[1717101848430,2.66759,3748.8,3747.9,2.66815]
[1717101848635,2.47934514,3748.9,3748.3,0.893]
[1717101848636,0.57671362,3748.7,3748.3,0.893]
[1717101848830,0.57671362,3748.8,3748.3,3.51633555]
[1717101849030,0.15524514,3748.9,3748.4,2.72114988]
[1717101849225,0.15524514,3748.9,3748.6,2.66764]
[1717101849475,0.15524514,3748.9,3748.7,0.05334399]
[1717101849680,0.15524514,3748.9,3748.6,2.66764]
[1717101849878,0.15524514,3748.9,3748.7,0.356064]
[1717101850601,0.15524514,3748.9,3748.2,2.66791]
[1717101850940,0.893,3748.8,3747.9,7.3]
[1717101851053,0.893,3748.4,3747.9,7.3]
[1717101851251,0.893,3748.2,3747.9,7.3]
[1717101851453,0.893,3748.5,3747.9,7.3]
[1717101851692,3.3266,3748.7,3747.9,7.3]
[1717101851916,0.893,3748.5,3747.9,7.3]
[1717101854483,2.66756,3748.8,3747.9,9.5605]
[1717101854668,1.46972333,3748.7,3747.9,7.3]
[1717101855089,0.893,3748.7,3747.9,7.3]
[1717101858739,2.66756,3748.8,3748.0,2.66807]
[1717101858903,0.15524514,3748.9,3748.1,2.2605]
[1717101859098,0.15524514,3748.9,3748.2,0.893]
[1717101861515,0.15524514,3748.9,3748.3,2.66787]
[1717101861812,0.15524514,3748.9,3748.3,3.56087]
[1717101864463,0.15524514,3748.9,3748.3,2.66787]
[1717101875815,0.15524514,3748.9,3748.3,3.56087]
[1717101880297,0.15524514,3748.9,3748.3,2.66787]
[1717101880516,0.15524514,3748.9,3748.3,3.56087]
[1717101884424,0.15524514,3748.9,3748.3,2.66787]
[1717101885855,0.52679865,3748.9,3748.3,2.66787]
[1717101886424,0.52679865,3748.9,3747.9,7.3]
[1717101886425,2.66766,3748.6,3747.9,7.3]
[1717101890734,2.66766,3748.6,3747.8,2.3525]
[1717101901043,2.66785,3748.4,3747.6,2.66835]
[1717101901180,3.56099,3748.2,3747.5,7.3]
[1717101902514,3.56099,3748.2,3747.1,7.3]
[1717101902515,2.66816,3748.0,3747.1,7.3]
[1717101902825,3.56153,3747.4,3747.1,7.3]
[1717101903020,3.56153,3747.4,3746.6,0.893]
[1717101903234,0.596903,3747.3,3746.6,0.893]
[1717101903379,2.66867,3747.2,3746.5,9.6103]
[1717101903785,2.66867,3747.2,3746.5,8.193]
[1717101904090,2.66894,3746.8,3746.5,7.3]
[1717101904292,3.56194,3746.8,3746.5,7.3]
[1717101904509,3.596944,3746.7,3746.5,7.3]
[1717101906447,3.56208,3746.6,3746.5,7.3]
[1717101906759,3.56208,3746.6,3745.7,9.96967]
[1717101909237,3.56208,3746.6,3745.7,7.3]
[1717101909454,0.893,3746.4,3745.7,7.3]
[1717101909627,2.6693,3746.3,3745.7,7.3]
[1717101909825,2.85372913,3746.3,3745.7,7.3]
[1717101910016,0.18442913,3746.3,3745.8,0.893]
[1717101910210,0.18442913,3746.3,3745.9,1.086277]
[1717101912357,0.18442913,3746.3,3746.0,3.3353]
[1717101912564,0.18442913,3746.3,3746.1,2.66944]
[1717101912712,0.18442913,3746.3,3746.2,0.893]
[1717101913213,0.18442913,3746.3,3746.2,3.3353]
[1717101913411,5.18442913,3746.3,3746.2,4.0444017]
[1717101914206,5.18442913,3746.3,3746.2,3.1514017]
[1717101915171,5.18442913,3746.3,3746.1,2.66944]
[1717101916220,0.18442913,3746.3,3746.1,2.66944]
[1717101916422,5.0,3746.2,3746.1,2.66944]
[1717101917072,5.0,3746.2,3745.8,2.4523]
[1717101917399,5.0,3746.2,3745.7,10.86272]
[1717101918329,5.0,3745.8,3745.7,13.418262]
[1717101918642,5.0,3745.8,3745.7,6.118262]
[1717101918992,5.0,3745.8,3745.7,2.66972]
[1717101919644,5.0,3745.8,3745.3,3.56295]
[1717101920260,5.0,3745.8,3745.0,7.3]
[1717101920433,5.0,3745.8,3745.0,8.193]
[1717101921376,5.0,3745.1,3745.0,8.193]
[1717101921572,5.0,3745.1,3745.0,7.3]
[1717101922096,5.0,3745.1,3745.0,10.500323]
[1717101923082,5.0,3745.1,3745.0,7.3]
[1717101925924,5.0,3745.1,3744.6,0.893]
[1717101926291,5.0,3745.1,3744.5,2.67052]
[1717101927342,2.66982,3745.6,3744.7,2.6704]
[1717101927481,3.0,3745.5,3744.7,2.6704]
[1717101927689,3.0,3745.5,3744.8,2.64560763]
[1717101928886,2.66956,3746.0,3745.0,2.67021]
[1717101929091,2.66956,3746.0,3744.8,2.3045]
[1717101929092,0.18442913,3746.3,3745.5,2.66983]
[1717101929408,0.18442913,3746.3,3745.4,2.4973]
[1717101929590,0.18442913,3746.3,3745.8,2.66963]
[1717101931905,0.18442913,3746.3,3745.4,2.66989]
[1717101931906,2.4698,3746.2,3745.4,2.66989]
[1717101932414,0.18442913,3746.3,3745.7,5.11859]
[1717101932415,5.0,3745.9,3745.7,5.11859]
[1717101933161,5.0,3745.9,3745.7,6.44072922]
[1717101933357,0.18442913,3746.3,3746.2,2.66937]
[1717101934401,5.18442913,3746.3,3746.2,2.66937]
[1717101935399,5.18442913,3746.3,3746.2,2.936307]
[1717101935636,5.18442913,3746.3,3746.2,5.332607]
[1717101936095,4.88184624,3746.3,3746.2,5.332607]
[1717101939000,4.88184624,3746.3,3746.2,2.66937]
[1717101950921,4.88184624,3746.3,3745.8,5.1629]
[1717101952366,5.0,3745.9,3745.8,5.1629]
[1717101955875,5.0,3745.9,3745.8,40.1629]
[1717101956064,5.0,3745.9,3745.8,2.6696]
[1717101957478,5.0,3745.9,3745.8,5.31520763]
[1717101958183,5.0,3745.9,3745.8,2.6696]
[1717101962479,5.0,3745.9,3745.8,3.5636]
[1717101964691,5.0,3745.9,3745.8,2.6696]
[1717101964997,5.0,3745.9,3745.8,3.5636]
[1717101966492,5.0,3745.9,3745.5,2.66986]
[1717101967494,5.5,3745.9,3745.5,2.66986]
[1717101967693,2.4861,3745.8,3744.8,12.21]
[1717101967865,0.894,3745.7,3744.7,7.3]
[1717101968067,2.4861,3745.6,3744.8,2.67035]
[1717101968267,3.25771392,3745.6,3744.8,2.67035]
[1717101969398,5.0,3744.9,3744.8,2.67035]
[1717101971282,5.0,3744.9,3744.4,2.67058]
[1717101973385,5.0,3744.5,3744.4,2.67058]
[1717101974263,7.4612,3744.5,3744.2,0.01909901]
[1717101974462,0.74612,3744.4,3744.2,0.01909901]
[1717101975399,5.0,3744.3,3744.2,0.01909901]
[1717101977914,5.1620932,3744.3,3744.2,0.01909901]
[1717101978468,7.6450932,3744.3,3744.2,0.01909901]
[1717101980580,11.96723242,3744.3,3744.2,0.01909901]
[1717101980775,14.05562966,3744.3,3744.2,0.01909901]
[1717101981022,14.39889535,3744.3,3744.2,0.01909901]
[1717101982987,16.54689535,3744.3,3744.2,0.01909901]
[1717101983478,16.54689535,3744.3,3742.9,7.3]
[1717101983479,2.4778,3744.2,3742.9,7.3]
[1717101983615,2.4778,3743.5,3742.9,7.3]
[1717101983813,2.992704,3743.5,3742.9,7.3]
[1717101984308,5.0,3743.0,3742.9,7.3]
[1717101984516,5.0,3743.0,3742.7,2.67185]
[1717101984714,5.0,3743.0,3742.9,2.67172]
[1717101988426,5.0,3743.0,3742.9,5.10942]
[1717101988651,5.0,3743.0,3742.9,5.620362]
[1717101988851,5.0,3743.0,3742.5,5.10968]
[1717101989349,5.0,3743.0,3742.5,2.67198]
[1717101991554,5.0,3742.6,3742.5,2.67198]
[1717101993958,5.0,3742.6,3742.2,7.3]
[1717101994550,5.0,3742.6,3742.3,2.67213]
[1717101994737,5.0,3742.6,3742.5,2.67201]
[1717101995365,2.67153,3743.2,3742.5,2.67201]
[1717101996435,5.0,3742.6,3742.5,2.67201]
[1717101999462,5.0,3742.6,3742.2,2.67222]
[1717102000463,5.0,3742.3,3742.2,2.67222]
[1717102006068,5.5,3742.3,3741.8,7.3]
[1717102006262,5.5,3742.3,3741.6,2.67265]
[1717102006691,5.92413922,3742.2,3741.3,9.97286]
[1717102006996,1.17992615,3742.1,3741.3,7.3]
[1717102007204,1.69726152,3742.0,3741.3,7.3]
[1717102007411,5.0,3741.7,3741.3,7.3]
[1717102008497,3.58123922,3741.6,3741.3,6.67265625]
[1717102008700,4.34849022,3741.6,3741.3,6.67265625]
[1717102009456,5.16115923,3741.4,3741.3,6.67265625]
[1717102009671,5.16115923,3741.4,3740.5,9.34605625]
[1717102009900,5.16115923,3741.4,3740.8,2.6732]
[1717102010395,5.0,3740.9,3740.8,2.6732]
[1717102015928,5.5,3740.9,3740.8,2.6732]
[1717102016297,5.0,3740.9,3740.8,2.6732]
[1717102023737,5.0,3740.9,3740.3,2.67353]
[1717102023738,7.4615,3740.9,3740.3,2.67353]
[1717102024444,7.4615,3740.9,3740.1,6.67265625]
[1717102024936,3.0,3740.8,3740.1,6.67265625]
[1717102025097,1.04615,3740.7,3740.1,6.67265625]
[1717102025293,5.0,3740.2,3740.1,6.67265625]
[1717102025495,5.0,3740.2,3739.9,2.6738]
[1717102026328,5.0,3740.0,3739.9,2.6738]
[1717102027699,5.0,3740.0,3739.9,4.9786]
[1717102027905,5.0,3740.0,3739.9,5.69126]
[1717102028756,4.78506001,3740.0,3739.9,7.01339922]
[1717102030451,5.0,3740.0,3739.9,7.01339922]
[1717102032826,5.0,3740.0,3739.9,2.6738]
[1717102043301,5.0,3740.0,3739.5,2.797541]
[1717102043962,5.0,3740.0,3739.5,0.123461]
[1717102044264,5.0,3739.6,3739.5,0.123461]
[1717102057417,5.0,3739.6,3739.5,2.445561]
[1717102057598,5.0,3739.6,3739.5,2.9575331]
[1717102057803,5.0,3739.6,3739.5,6.43367232]
[1717102058023,5.0,3739.6,3739.5,4.27967232]
[1717102058225,5.0,3739.6,3739.5,6.98367232]
[1717102058722,5.0,3739.6,3739.5,41.98367232]
[1717102059126,5.0,3739.6,3739.5,44.98367232]
[1717102059299,0.16115923,3741.4,3740.0,2.67374]
[1717102059629,0.16115923,3741.4,3741.0,2.67307]
[1717102062055,0.16115923,3741.4,3740.6,2.67335]
[1717102062330,2.4029,3741.3,3740.6,2.67335]
[1717102062889,5.07581,3741.3,3740.5,6.67265625]
[1717102063090,2.67301,3741.1,3740.5,6.67265625]
[1717102063567,2.67301,3741.1,3740.2,2.67362]
[1717102065035,2.67319,3740.9,3740.1,6.67265625]
[1717102066481,3.72503922,3741.0,3740.1,6.67265625]
[1717102066482,2.4029,3741.0,3740.1,6.67265625]
[1717102066663,3.0,3741.2,3740.2,0.66726562]
[1717102066818,3.0,3741.2,3740.4,2.67348]
[1717102068619,0.16115923,3741.4,3741.0,2.67304]
[1717102068864,0.16115923,3741.4,3741.0,2.940344]
[1717102070167,0.16115923,3741.4,3741.2,2.67293]
[1717102070374,0.16115923,3741.4,3741.3,2.3383]
[1717102072869,0.16115923,3741.4,3741.3,6.36443922]
[1717102074258,0.16115923,3741.4,3741.3,4.4923]
[1717102074480,0.16115923,3741.4,3741.2,2.67293]
[1717102074659,0.16115923,3741.4,3741.2,3.1946734]
[1717102075577,0.16115923,3741.4,3741.3,1.32213922]
[1717102075745,0.16115923,3741.4,3741.3,1.87213922]
[1717102075950,0.16115923,3741.4,3741.3,36.87213922]
[1717102077112,2.67192,3742.7,3741.3,36.87213922]
[1717102077113,2.67145,3743.3,3741.5,2.2772]
[1717102077233,2.67145,3743.3,3742.4,2.67203]
[1717102078141,2.67117,3743.7,3742.4,2.67203]
[1717102078348,2.67117,3743.7,3742.4,3.154633]
[1717102078349,0.43622919,3743.6,3742.4,3.154633]
[1717102078554,3.43622919,3743.6,3742.4,3.154633]
[1717102078767,2.3160932,3744.3,3742.5,3.47613922]